[Event "Frauenbundesliga 2021-22"]
[Site "Germany"]
[Date "2022.05.25"]
[Round "9.13"]
[White "Klek, Hanna Marie"]
[Black "Abdumalik, Zhansaya"]
[Result "1/2-1/2"]
[ECO "B33"]
[WhiteElo "2362"]
[BlackElo "2489"]
[Annotator "TA"]
[PlyCount "93"]
[EventDate "2021.11.26"]
[EventType "team-tourn"]
[EventCountry "GER"]
[SourceTitle "playchess.com"]
[Source "ChessBase"]
[SourceQuality "1"]
[WhiteTeam "Schachfreunde Deizisau"]
[BlackTeam "OSG Baden-Baden"]
[WhiteTeamCountry "GER"]
[BlackTeamCountry "KAZ"]
[TimeControl "40/5400+30:1800+30"]

{[%evp 23,93,39,35,16,28,20,22,18,36,21,24,16,20,19,16,16,16,0,0,-100,-106,-103,-107,-186,-158,-157,-200,-196,-158,-170,0,0,0,0,0,0,0,0,14,18,15,24,53,0,0,0,0,0,54,51,47,20,20,26,58,43,110,110,100,107,83,84,96,104,109,21,22,10,10,9,9,8]} 1. e4 {[%emt 0:00:03]} c5 {[%emt 0:00:06]} 2. Nf3 {[%emt 0:00:05]} Nc6 {[%emt 0:00:07]} 3. d4 {[%emt 0:00:05]} cxd4 {[%emt 0:00:09]} 4. Nxd4 {[%emt 0:00:03]} Nf6 {[%emt 0:00:09]} 5. Nc3 {[%emt 0:00:05]} e5 {[%emt 0:00:20]} 6. Ndb5 {[%emt 0:00:10][%cal Bd4b5,Bb5a3,Ba3c2,Bc2b4,Bb4d5][%mdl 32]} d6 {[%emt 0:00:21]} 7. Bg5 {[%emt 0:00:06]} a6 {[%emt 0:00:07]} 8. Na3 {[%emt 0:00:05]} b5 {[%emt 0:00:29]} 9. Nd5 {[%emt 0:00:13]} Be7 {[%emt 0:00:58]} 10. Bxf6 {[%emt 0:00:07]} Bxf6 {[%emt 0:00:05]} 11. c3 {[%emt 0:00:07]} Bg5 {[%emt 0:00:25]} 12. Nc2 {[%emt 0:00:08]} Ne7 {[%emt 0:00:05]} 13. h4 {[%emt 0:00:24] B33: Sicilian: Pelikan and Sveshnikov Variations.} Bh6 {[%emt 0:03:10]} 14. a4 {[%emt 0:02:06]} bxa4 {[%emt 0:01:16]} 15. Ncb4 {[%emt 0:02:46][%cal Of1a6] Pair of Knights!} O-O {[%emt 0:05:29]} 16. Qxa4 {[%emt 0:01:12]} Nxd5 {[%emt 0:07:23]} 17. Nxd5 {[%emt 0:00:43]} a5 {[%emt 0:00:25]} 18. Bb5 {[%emt 0:16:57]} Be6 {[%emt 0:04:53]} 19. Bc6 {[%emt 0:04:03]} Rb8 {[%emt 0:01:02]} 20. b3 {[%emt 0:13:09]} Kh8 {[%emt 0:04:19] [#]} 21. Qc4 $146 {[%emt 0:02:05]} (21. b4 $11) ({Predecessor:} 21. g3 Bg4 22. O-O Bf3 23. Rfe1 Qc8 24. Bd7 Qb7 25. b4 axb4 26. cxb4 f5 27. Qc6 {0-1 (49) Volokitin,A (2645)-Timofeev,A (2662) Lugo 2006}) 21... f5 $17 {[%emt 0:03:14]} 22. exf5 {[%emt 0:05:07]} Rxf5 {[%emt 0:01:22][%cal Of5f4]} 23. g3 {[%emt 0:01:34] Against Rf4} (23. O-O $17) 23... Rc8 $19 {[%emt 0:03:57]} 24. Qa6 {[%emt 0:06:03]} e4 {[%emt 0:16:34]} 25. c4 {[%emt 0:06:28]} Rf3 {[%emt 0:07:48] Strongly threatening ...Qf8.} 26. O-O {[%emt 0:04:12] [#]} Bh3 $2 {[%emt 0:02:49]} (26... Rxb3 27. Rfb1 Rxb1+ 28. Rxb1 $17) (26... Qf8 $1 $19 {And now ...Bh3 would win.} 27. Qb7 Bh3) 27. Rfe1 $11 {[%emt 0:06:25]} Rxf2 {[%emt 0:05:55]} 28. Rxe4 {[%emt 0:00:43]} (28. Kxf2 Qf8+ 29. Nf4 (29. Kg1 $2 Qf3 $19) 29... Bxf4 30. Bxe4 (30. gxf4 $2 Qxf4+ 31. Kg1 Qg3+ 32. Kh1 Qg2#) 30... d5 $19) 28... Rf8 {[%emt 0:06:23]} (28... Rg2+ 29. Kh1 Rxg3 30. Re8+ Qxe8 31. Bxe8 Rxe8 32. Qc6 $14 (32. Qxd6 Rxb3 33. Nc7 Reb8 $11) (32. Qxa5 Rg4 $11)) 29. Re7 {[%emt 0:05:48] Hoping for Rae1.} Rb8 {[%emt 0:03:45]} 30. Bb5 {[%emt 0:03:32]} Ra8 {[%emt 0:03:59]} 31. Qb7 {[%emt 0:02:38]} Rb8 {[%emt 0:00:42]} 32. Qa7 {[%emt 0:02:16]} Qc8 {[%emt 0:02:00][%cal Ob8b5] [#] White must now prevent ...Rxb5!} 33. Qd4 {[%emt 0:02:23]} (33. Kh2 $14) 33... Qg4 {[%emt 0:04:49]} 34. Qxg4 {[%emt 0:02:05] Really sharp! Active counter play!} Bxg4 {[%emt 0:00:01]} 35. Rxa5 {[%emt 0:07:45]} Bf3 {[%emt 0:04:05]} (35... Rf3 $11) 36. Ba4 {[%emt 0:00:51]} Bd2 {[%emt 0:01:30]} 37. Ra6 {[%emt 0:01:37]} Bxd5 {[%emt 0:01:16]} 38. cxd5 {[%emt 0:01:09]} h5 {[%emt 0:02:23]} 39. Kg2 {[%emt 0:01:09]} ({Don't play} 39. Rxd6 Bb4 40. Rde6 Bc5+ 41. Kh1 Rf1+ 42. Kg2 Rf2+ 43. Kh3 Bxe7 44. Rxe7 Rd2 $17) 39... Rf5 {[%emt 0:00:56]} ({Better is} 39... Bb4 $14) 40. Re8+ $16 {[%emt 0:02:19]} ({And not} 40. Rxd6 Bb4 41. Ree6 Bxd6 42. Rxd6 Rbf8 $17) 40... Rxe8 {[%emt 0:02:25]} 41. Bxe8 {[%emt 0:30:06][%mdl 4096] Endgame Threatens to win with Bg6. KRB-KRB} g5 {[%emt 0:31:40]} 42. Rxd6 {[%emt 0:00:00]} gxh4 {[%emt 0:00:00]} 43. gxh4 {[%emt 0:00:00]} Be1 {[%emt 0:00:00]} 44. Rd8 {[%emt 0:00:00]} (44. Rh6+ $16 Kg7 45. Rg6+ (45. Rxh5 Rxh5 46. Bxh5 Bxh4 $11) 45... Kf8 46. Re6 Bxh4 47. Bc6) 44... Bxh4 $11 {[%emt 0:00:00] The position is equal.} 45. Rb8 {[%emt 0:00:00] Threatening mate with Bg6+.} Rxd5 {[%emt 0:00:00]} 46. Bf7+ {[%emt 0:00:00]} Rd8 {[%emt 0:00:00]} 47. Rxd8+ {[%emt 0:00:00] Weighted Error Value: White=0.18 (very precise) /Black=0.12 (very precise)} 1/2-1/2

[Event "Frauenbundesliga 2021-22"]
[Site "Germany"]
[Date "2022.05.25"]
[Round "9.14"]
[White "Paehtz, Elisabeth"]
[Black "Schleining, Zoya"]
[Result "1/2-1/2"]
[ECO "B11"]
[WhiteElo "2497"]
[BlackElo "2329"]
[Annotator "TA"]
[PlyCount "51"]
[EventDate "2021.11.26"]
[EventType "team-tourn"]
[EventCountry "GER"]
[SourceTitle "playchess.com"]
[Source "ChessBase"]
[SourceQuality "1"]
[WhiteTeam "OSG Baden-Baden"]
[BlackTeam "Schachfreunde Deizisau"]
[WhiteTeamCountry "GER"]
[BlackTeamCountry "GER"]
[TimeControl "40/5400+30:1800+30"]

{[%evp 9,51,33,31,34,40,35,33,31,37,2,28,0,26,23,17,21,39,6,37,26,64,43,52,57,52,35,40,47,42,26,31,0,68,0,19,19,20,19,27,0,14,0,0,4]} 1. e4 {[%emt 0:00:03]} c6 {[%emt 0:00:16]} 2. Nf3 {[%emt 0:00:29]} d5 {[%emt 0:00:10]} 3. Nc3 {[%emt 0:00:03]} dxe4 {[%emt 0:00:22]} 4. Nxe4 {[%emt 0:00:04]} Nf6 {[%emt 0:00:07]} 5. Qe2 {[%emt 0:00:58]} Bf5 {[%emt 0:00:30]} 6. Nxf6+ {[%emt 0:03:14] B11: Caro-Kann: Two Knights Variation.} gxf6 {[%emt 0:00:06]} 7. d3 $1 {[%emt 0:00:52] 7.d3 is better than 7.d4.} Nd7 {[%emt 0:00:35]} 8. g3 {[%emt 0:04:39] White is slightly better.} Ne5 {[%emt 0:00:31]} 9. Nh4 {[%emt 0:08:04]} Bg4 {[%emt 0:09:52][%cal Bf5g4,Bg4e6,Be6d5][%mdl 32]} 10. f3 {[%emt 0:01:13] [#]} Be6 $146 {[%emt 0:03:05]} ({Predecessor:} 10... Bc8 11. Bd2 Ng6 12. Nxg6 hxg6 13. Bc3 Be6 14. Bg2 Qd6 15. f4 O-O-O 16. O-O-O Bg7 {1-0 (49) Fenil,S (2384)-Mahalakshmi,M (2185) Paracin 2019}) 11. Bd2 {[%emt 0:06:56]} Qb6 {[%emt 0:05:49]} 12. Bc3 {[%emt 0:01:41]} O-O-O {[%emt 0:01:07]} 13. f4 {[%emt 0:14:49]} Bd5 {[%emt 0:13:10] [#] Threatens to win with ...Nxd3+.} 14. Bg2 {[%emt 0:02:33]} Nd7 {[%emt 0:12:45]} 15. a4 {[%emt 0:05:44][%cal Ba2a4,Ba4a5][%mdl 32]} e6 {[%emt 0:17:35]} 16. a5 {[%emt 0:01:21]} Qb5 {[%emt 0:00:37]} 17. O-O {[%emt 0:06:10][%cal Oa5a6]} Bxg2 {[%emt 0:05:00]} 18. Kxg2 {[%emt 0:04:00]} a6 {[%emt 0:03:47]} 19. Nf3 {[%emt 0:07:30]} h5 {[%emt 0:06:49]} 20. Qe4 {[%emt 0:04:24]} Be7 {[%emt 0:05:15]} (20... Rg8 $11) 21. Qc4 {[%emt 0:11:00] White is more active.} (21. f5 $14) 21... Qxc4 {[%emt 0:02:54]} 22. dxc4 {[%emt 0:00:03][%cal Of4f5]} Rhg8 {[%emt 0:01:05]} 23. f5 {[%emt 0:04:05]} Rg4 {[%emt 0:03:07]} 24. b3 {[%emt 0:03:27]} Rdg8 {[%emt 0:03:21]} 25. Rfe1 {[%emt 0:05:03]} e5 {[%emt 0:01:48]} 26. Kh3 {[%emt 0:01:19] Prevents h4.  Weighted Error Value: White=0.15 (very precise) /Black=0.15 (very precise)} 1/2-1/2

[Event "Frauenbundesliga 2021-22"]
[Site "Germany"]
[Date "2022.05.25"]
[Round "9.15"]
[White "Rapport, Jovana"]
[Black "Stefanova, Antoaneta"]
[Result "1/2-1/2"]
[ECO "C47"]
[WhiteElo "2294"]
[BlackElo "2458"]
[Annotator "TA"]
[PlyCount "85"]
[EventDate "2021.11.26"]
[EventType "team-tourn"]
[EventCountry "GER"]
[SourceTitle "playchess.com"]
[Source "ChessBase"]
[SourceQuality "1"]
[WhiteTeam "Schachfreunde Deizisau"]
[BlackTeam "OSG Baden-Baden"]
[WhiteTeamCountry "SRB"]
[BlackTeamCountry "BUL"]
[TimeControl "40/5400+30:1800+30"]

{[%evp 22,85,13,6,11,10,14,8,9,6,9,0,18,6,20,24,13,0,2,7,0,0,0,0,25,23,18,0,0,0,24,0,0,0,0,0,21,18,18,0,12,8,10,13,22,17,24,0,0,0,0,0,0,0,51,51,51,51,51,51,51,0,31,0,43,0]} 1. e4 {[%emt 0:00:08]} e5 {[%emt 0:00:33]} 2. Nf3 {[%emt 0:00:11]} Nc6 {[%emt 0:00:05]} 3. Nc3 {[%emt 0:00:14]} Nf6 {[%emt 0:01:03]} 4. d4 {[%emt 0:00:18]} exd4 {[%emt 0:02:02]} 5. Nxd4 {[%emt 0:00:38]} Bb4 {[%emt 0:01:13]} 6. Nxc6 {[%emt 0:00:48]} bxc6 {[%emt 0:00:06][%cal Bb7c6,Bc6d5,Bd5d4][%mdl 32]} 7. Bd3 {[%emt 0:00:05]} O-O {[%emt 0:04:13]} 8. O-O {[%emt 0:00:23]} d5 {[%emt 0:00:58]} 9. exd5 {[%emt 0:00:24]} cxd5 {[%emt 0:00:43]} 10. Bg5 {[%emt 0:01:04]} Be6 {[%emt 0:26:17]} 11. Qf3 {[%emt 0:05:56]} Be7 {[%emt 0:09:21]} 12. h3 {[%emt 0:20:51]} h6 $1 {[%emt 0:02:48] The main line 12...h6 scores better than 12...Rb8. C47: Scotch Four Knights and Four Knights with 4 g3.} 13. Bh4 {[%emt 0:02:25]} c5 {[%emt 0:10:30]} 14. Rad1 {[%emt 0:05:01] [#]} d4 $146 {[%emt 0:09:35] The position is equal.} ({Predecessor:} 14... Rb8 15. b3 Rb4 16. Bc4 g5 17. Bg3 d4 18. Bxe6 fxe6 19. Rfe1 Qc8 20. Ne4 Rf7 {1-0 (36) Bykhovsky,A (2364)-Haitsma,A (2107) Hoogeveen 2008}) 15. Bxf6 {[%emt 0:05:42]} Bxf6 {[%emt 0:01:21]} 16. Ne4 {[%emt 0:00:18][%cal Bc3e4,Be4d2,Bd2c4][%mdl 32]} Be7 {[%emt 0:00:40]} 17. Nd2 {[%emt 0:04:01] Prevents c4.} Rb8 {[%emt 0:02:42]} 18. b3 {[%emt 0:00:21]} Rb6 {[%emt 0:03:48]} 19. Nc4 {[%emt 0:07:49]} Bd5 {[%emt 0:01:49]} 20. Qg4 {[%emt 0:03:49]} Rf6 {[%emt 0:03:11]} 21. Rde1 {[%emt 0:01:27]} g6 {[%emt 0:03:13]} 22. Re5 {[%emt 0:05:04]} Be6 {[%emt 0:03:25]} 23. Qe2 {[%emt 0:03:20]} Kg7 {[%emt 0:00:29]} 24. Qd2 {[%emt 0:01:34]} Qc7 {[%emt 0:03:23] [#] Strongly threatening ...Bxc4.} 25. Rfe1 {[%emt 0:00:43]} Rd8 {[%emt 0:01:46]} 26. a4 {[%emt 0:02:57]} Rd5 {[%emt 0:01:44]} 27. Qe2 {[%emt 0:06:46] Threatens to win with Rxd5.} Bd8 {[%emt 0:00:58]} 28. Nd2 {[%emt 0:02:18]} Qc8 {[%emt 0:04:41]} 29. Rxd5 {[%emt 0:07:58]} Bxd5 {[%emt 0:00:01]} 30. Bc4 {[%emt 0:00:08]} (30. Qe5 {keeps more tension.} Bb7 31. Ne4 Bxe4 32. Rxe4 Bc7 33. Qe7) 30... Bxc4 {[%emt 0:02:10]} 31. Nxc4 {[%emt 0:00:02]} Re6 {[%emt 0:00:06]} 32. Qd1 {[%emt 0:00:13]} h5 {[%emt 0:00:43]} 33. Re2 {[%emt 0:01:15]} Bc7 {[%emt 0:00:32]} 34. Qe1 {[%emt 0:00:08]} Rxe2 {[%emt 0:00:42]} 35. Qxe2 $11 {[%emt 0:00:01][%mdl 4096] Endgame KQB-KQN} Qd8 {[%emt 0:00:30] Inhibits Qe7.} 36. Qe4 {[%emt 0:02:18]} h4 {[%emt 0:00:08] Against g3} 37. Qc6 {[%emt 0:04:44]} Qe7 {[%emt 0:00:31]} (37... Bb6 $11) 38. Kf1 $14 {[%emt 0:00:02]} Bh2 {[%emt 0:00:39]} 39. Qd5 {[%emt 0:02:08] Inhibits Qg5.} Bf4 {[%emt 0:00:23]} 40. Nb2 {[%emt 0:03:16]} Bd6 {[%emt 0:00:45]} 41. Nc4 {[%emt 0:30:58]} Bf4 {[%emt 0:30:24]} 42. Nb2 {[%emt 0:00:06]} Bd6 {[%emt 0:00:05]} 43. Nc4 {[%emt 0:00:05] Weighted Error Value: White=0.07 (flawless) /Black=0.06 (flawless)} 1/2-1/2

[Event "Frauenbundesliga 2021-22"]
[Site "Germany"]
[Date "2022.05.25"]
[Round "9.16"]
[White "Zatonskih, Anna"]
[Black "Koepke, Elena"]
[Result "1-0"]
[ECO "D27"]
[WhiteElo "2386"]
[BlackElo "2285"]
[Annotator "TA"]
[PlyCount "123"]
[EventDate "2021.11.26"]
[EventType "team-tourn"]
[EventCountry "GER"]
[SourceTitle "playchess.com"]
[Source "ChessBase"]
[SourceQuality "1"]
[WhiteTeam "OSG Baden-Baden"]
[BlackTeam "Schachfreunde Deizisau"]
[WhiteTeamCountry "USA"]
[BlackTeamCountry "GER"]
[TimeControl "40/5400+30:1800+30"]

{[%evp 11,123,37,30,16,36,35,33,44,45,59,52,47,62,54,87,61,70,70,98,106,111,105,104,107,109,115,129,99,104,70,94,81,118,85,85,56,56,55,53,53,53,53,53,52,55,53,54,45,53,53,52,50,50,36,41,36,36,36,106,106,106,102,102,102,109,97,82,63,108,104,169,169,168,174,174,171,166,0,174,172,166,171,187,123,123,123,123,123,123,123,157,157,156,157,159,158,203,211,456,462,424,412,470,459,556,545,535,517,890,870,1693,1454,29992,29993]} 1. d4 {[%emt 0:00:04]} d5 {[%emt 0:00:06]} 2. c4 {[%emt 0:00:33]} dxc4 {[%emt 0:00:05]} 3. Nf3 {[%emt 0:00:15]} Nf6 {[%emt 0:00:06]} 4. e3 {[%emt 0:00:23]} e6 {[%emt 0:00:04]} 5. Bxc4 {[%emt 0:00:07]} c5 {[%emt 0:00:06]} 6. O-O {[%emt 0:02:10]} a6 {[%emt 0:00:05]} 7. Be2 {[%emt 0:01:40] D27: Queen's Gambit Accepted: Classical main line: 7 e4!? and 7 a4.} Nc6 {[%emt 0:05:11]} 8. dxc5 {[%emt 0:04:00]} Bxc5 {[%emt 0:02:23]} 9. Qxd8+ {[%emt 0:00:27] White is slightly better.} Kxd8 {[%emt 0:00:33]} 10. b3 $1 {[%emt 0:00:31][%mdl 4] is more profitable than 10.Nbd2 at the moment.} Ke7 {[%emt 0:13:09]} 11. Bb2 {[%emt 0:00:58]} Bd7 {[%emt 0:04:28]} 12. Rc1 {[%emt 0:01:16]} b6 {[%emt 0:19:27]} 13. Nbd2 {[%emt 0:07:25]} Rhd8 {[%emt 0:05:39] [#]} 14. Nc4 $146 {[%emt 0:06:07]} ({Predecessor:} 14. a3) 14... Be8 {[%emt 0:02:17]} 15. Ne1 $1 {[%emt 0:06:11]} Nd5 {[%emt 0:36:11]} 16. Nd3 {[%emt 0:15:42]} (16. Bxg7 {is interesting.} Bb4 17. e4 Nf4 18. Bf3) 16... f6 {[%emt 0:00:52]} 17. Nxc5 {[%emt 0:01:24]} bxc5 {[%emt 0:00:02]} 18. Ba3 {[%emt 0:00:09] A strong pair of Bishops.} Ndb4 {[%emt 0:04:55]} 19. Kf1 {[%emt 0:23:11]} Kf7 {[%emt 0:00:14]} 20. Ke1 {[%emt 0:03:54]} Rab8 {[%emt 0:01:13]} 21. Nb2 {[%emt 0:01:23]} Rd5 {[%emt 0:00:30]} 22. Na4 {[%emt 0:06:26]} Ne5 {[%emt 0:00:38]} 23. Nxc5 {[%emt 0:01:13]} Rxc5 {[%emt 0:00:56][%mdl 64] Remove Defender} 24. Rxc5 {[%emt 0:00:07]} Ned3+ {[%emt 0:00:04]} 25. Bxd3 {[%emt 0:00:11]} Nxd3+ {[%emt 0:00:03]} 26. Kd2 {[%emt 0:01:04]} Nxc5 {[%emt 0:00:04]} 27. Bxc5 $14 {[%emt 0:00:04][%mdl 4096] Endgame KRB-KRB} Rc8 {[%emt 0:01:07]} 28. Rc1 {[%emt 0:01:35]} e5 {[%emt 0:01:07]} 29. a4 {[%emt 0:01:23]} Ke6 {[%emt 0:00:14]} 30. e4 {[%emt 0:01:29]} g6 {[%emt 0:00:16]} 31. Kd3 {[%emt 0:00:57]} f5 {[%emt 0:00:39]} 32. Kc4 {[%emt 0:01:45]} fxe4 {[%emt 0:00:45]} 33. Kb4 {[%emt 0:01:48] Threatens to win with Ka5.} Rb8+ $1 {[%emt 0:01:06]} 34. Ka3 {[%emt 0:00:05]} Bc6 {[%emt 0:01:59]} (34... Rc8 $14) 35. Ba7 $16 {[%emt 0:02:42][%csl LRb8,LRc6]} Rc8 {[%emt 0:00:05]} 36. Kb4 {[%emt 0:00:30]} e3 {[%emt 0:01:05]} 37. fxe3 {[%emt 0:00:48]} Kd7 {[%emt 0:00:37]} 38. Rd1+ {[%emt 0:03:18]} Kc7 {[%emt 0:00:23]} 39. g3 {[%emt 0:00:32]} Kb7 {[%emt 0:00:07]} 40. Bc5 {[%emt 0:01:09]} Re8 {[%emt 0:00:25]} (40... Be4 $16 41. Rd6 (41. Rd7+ Rc7 $16) 41... Rc6) 41. Rd6 $18 {[%emt 0:32:14]} e4 {[%emt 0:09:39]} 42. Rf6 {[%emt 0:00:00]} Rd8 {[%emt 0:04:35]} 43. Bd6 {[%emt 0:00:00]} Bd5 {[%emt 0:00:49]} 44. Bc5 {[%emt 0:00:00]} Bc6 $1 {[%emt 0:00:05]} 45. Kc4 {[%emt 0:00:00]} Bd5+ {[%emt 0:00:20]} 46. Kc3 $1 {[%emt 0:00:00]} Bg8 {[%emt 0:10:36] [#]} 47. b4 {[%emt 0:00:00]} ({Better is} 47. Rb6+ $1 $18 Kc7 48. a5 (48. Rxa6 Rd3+ 49. Kb2 Rxb3+ 50. Kc2 Bc4 $16)) 47... Rd3+ $16 {[%emt 0:00:11]} 48. Kb2 {[%emt 0:00:00]} Bc4 {[%emt 0:02:13]} 49. h4 {[%emt 0:00:00]} Rb3+ {[%emt 0:00:45]} 50. Kc2 {[%emt 0:00:00]} Rd3 {[%emt 0:01:34]} 51. b5 {[%emt 0:00:00]} axb5 {[%emt 0:00:35] [#]} 52. a5 {[%emt 0:00:00][%cal Ba4a5,Ba5a6,Ba6a7][%mdl 32] And now a6+ would win.} ({Don't do} 52. axb5 Rd5 $16) 52... b4 {[%emt 0:02:05]} 53. Rb6+ {[%emt 0:00:00]} ({Don't take} 53. Bxb4 $6 Rxe3 54. Rb6+ Ka8 $14) 53... Kc7 {[%emt 0:00:24]} 54. Rxb4 {[%emt 0:00:00]} Bd5 {[%emt 0:00:45]} (54... Ba6 {keeps fighting.} 55. Rxe4 Rd5 56. Bb6+ Kd7) 55. a6 $18 {[%emt 0:00:00]} Ra3 {[%emt 0:02:11]} 56. a7 {[%emt 0:00:00]} ({Less strong is} 56. Rd4 Ra2+ 57. Kb1 Bb3 $18) 56... Ra6 {[%emt 0:01:28]} 57. Rb8 {[%emt 0:00:00]} Bb7 {[%emt 0:00:45]} 58. Kc3 {[%emt 0:00:56]} Kc6 {[%emt 0:00:19]} 59. Bd4 {[%emt 0:00:57]} h5 {[%emt 0:00:44]} (59... Ra1 $142 60. Rh8 Rc1+ 61. Kb4 Rg1 62. Rxh7 Rxg3) 60. Kb4 {[%emt 0:00:53]} Kc7 {[%emt 0:00:32]} 61. Kb5 {[%emt 0:00:36] White wants to mate with Be5+.} Rc6 {[%emt 0:00:36]} 62. Be5+ {[%emt 0:00:35] Weighted Error Value: White=0.09 (flawless) /Black=0.32} 1-0

[Event "Frauenbundesliga 2021-22"]
[Site "Germany"]
[Date "2022.05.25"]
[Round "9.17"]
[White "Jelica, Mara"]
[Black "Salimova, Nurgyul"]
[Result "1/2-1/2"]
[ECO "B15"]
[WhiteElo "2121"]
[BlackElo "2418"]
[Annotator "TA"]
[PlyCount "93"]
[EventDate "2021.11.26"]
[EventType "team-tourn"]
[EventCountry "GER"]
[SourceTitle "playchess.com"]
[Source "ChessBase"]
[SourceQuality "1"]
[WhiteTeam "Schachfreunde Deizisau"]
[BlackTeam "OSG Baden-Baden"]
[WhiteTeamCountry "CRO"]
[BlackTeamCountry "BUL"]
[TimeControl "40/5400+30:1800+30"]

{[%evp 14,93,27,37,15,13,41,35,40,40,42,27,33,18,40,-21,0,-39,25,0,0,0,0,0,10,0,21,8,30,23,37,6,28,22,87,37,36,22,100,73,192,172,188,116,185,169,176,10,20,0,0,0,0,0,0,0,0,0,0,0,0,0,0,0,0,0,0,0,0,0,0,0,0,0,0,0,0,0,0,0,0,0]} 1. e4 {[%emt 0:00:01]} c6 {[%emt 0:00:07]} 2. d4 {[%emt 0:00:09]} d5 {[%emt 0:00:17]} 3. Nc3 {[%emt 0:01:39]} dxe4 {[%emt 0:00:07]} 4. Nxe4 {[%emt 0:00:12]} Nf6 {[%emt 0:00:08]} 5. Nxf6+ {[%emt 0:00:06]} exf6 {[%emt 0:00:06]} 6. c3 {[%emt 0:00:04]} Bd6 {[%emt 0:00:34]} 7. Bd3 {[%emt 0:00:07]} O-O {[%emt 1:32:41]} 8. Qc2 {[%emt 0:00:09] Active counter play!} Re8+ {[%emt 0:00:00] B15: Caro-Kann: 3 Nc3: 3...g6 and 3...dxe4 4 Nxe4 Nf6 5 Nxf6+ exf6.} 9. Ne2 {[%emt 0:00:03]} h5 {[%emt 0:00:00]} (9... f5 $5) 10. O-O {[%emt 0:07:40]} h4 {[%emt 0:00:00] White is slightly better.} 11. h3 {[%emt 0:02:41]} Nd7 {[%emt 0:00:00]} 12. Bd2 {[%emt 0:01:51]} Nf8 {[%emt 0:00:00]} 13. Rae1 {[%emt 0:01:30]} Bc7 {[%emt 0:00:00] [#]} 14. Qc1 $146 {[%emt 0:06:51]} ({White should play} 14. Kh1 $14) ({Predecessor:} 14. b3 Be6 15. Kh1 Qd7 16. Ng1 Rad8 17. f4 f5 18. Nf3 Ng6 19. Ng5 c5 20. Nxe6 fxe6 {1-0 (73) Sjugirov,S (2661)-Shuvalova,P (2507) Chess.com INT 2021}) 14... Be6 {[%emt 0:00:00]} ({But not} 14... Qd6 15. Bf4 Qd8 16. Bxc7 Qxc7 17. Qf4 Qxf4 18. Nxf4 $11) (14... Ne6 $5 {[%cal Rd8d6]}) 15. b3 {[%emt 0:07:15]} a5 {[%emt 0:00:00]} (15... Qd6 16. Bf4 Qe7 17. Bxc7 Qxc7 18. Nf4 $14) (15... Ng6 $1 $15) 16. Bf4 {[%emt 0:00:40]} a4 {[%emt 0:00:00]} 17. Bxc7 {[%emt 0:01:02]} Qxc7 {[%emt 0:00:00]} 18. c4 {[%emt 0:02:29]} axb3 {[%emt 0:00:00]} 19. axb3 {[%emt 0:00:01]} Red8 {[%emt 0:00:00]} 20. Qe3 {[%emt 0:06:00]} Ra5 {[%emt 0:00:00]} 21. Ra1 {[%emt 0:03:57]} Rda8 {[%emt 0:00:00]} 22. Rxa5 {[%emt 0:00:25]} Rxa5 {[%emt 0:00:00]} 23. Rd1 {[%emt 0:06:53][%cal Bf1d1,Bd1a1,Ba1a8][%mdl 32]} Rg5 {[%emt 0:00:00]} (23... Ra3 $11) 24. f4 {[%emt 0:04:13]} ({White should try} 24. Nc3 $16) 24... Ra5 $14 {[%emt 0:00:00]} 25. b4 {[%emt 0:06:57]} Rh5 {[%emt 0:00:00]} (25... Ra3 $11 {keeps the balance.}) 26. Ra1 {[%emt 0:04:29]} g6 {[%emt 0:00:00]} (26... Qd8 $16) 27. Ra8 $18 {[%emt 0:06:36][%cal Od3g6] Black must now prevent Bxg6!} Kg7 {[%emt 0:00:00] [#]} 28. Nc3 {[%emt 0:09:29]} (28. d5 $1 $18 {[%cal Rd5e6]} cxd5 29. c5) 28... b5 {[%emt 0:00:00]} (28... Qd7 $16 29. Be2 Rh8) 29. d5 {[%emt 0:02:18]} ({Don't do} 29. cxb5 cxb5 30. Bxb5 (30. Nxb5 Qc6 $11) 30... Rf5 $16) 29... cxd5 {[%emt 0:00:00]} 30. Nxb5 $2 {[%emt 0:01:33]} (30. c5 $18) 30... Qc6 $11 {[%emt 0:00:00] The position is equal.} 31. Ra5 {[%emt 0:06:09] And now c5 would win.} dxc4 {[%emt 0:01:03]} 32. Nd4 {[%emt 0:00:11]} Qd6 {[%emt 0:03:02]} 33. Rxh5 {[%emt 0:00:36]} gxh5 {[%emt 0:01:19]} 34. Bxc4 {[%emt 0:01:36]} Qxb4 {[%emt 0:02:00]} 35. Bxe6 {[%emt 0:04:01]} Nxe6 {[%emt 0:00:37]} 36. Nxe6+ {[%emt 0:00:24]} fxe6 {[%emt 0:00:06]} 37. Qxe6 {[%emt 0:00:13]} Qxf4 {[%emt 0:00:17][%mdl 4096] Endgame KQ-KQ} 38. Qe7+ {[%emt 0:00:20]} Kg6 {[%emt 0:00:45]} 39. Qe8+ {[%emt 0:00:19]} Kg5 {[%emt 0:00:51]} 40. Qg8+ {[%emt 0:00:15]} Kh6 {[%emt 0:00:34]} 41. Qf8+ {[%emt 0:30:43]} Kg6 {[%emt 0:30:10]} 42. Qg8+ {[%emt 0:00:07]} Kf5 {[%emt 0:02:03]} 43. Qh7+ {[%emt 0:00:10]} Kg5 {[%emt 0:00:47]} 44. Qg7+ {[%emt 0:00:07]} Kf5 {[%emt 0:00:05]} 45. Qh7+ {[%emt 0:00:03]} Kg5 {[%emt 0:00:19]} 46. Qg7+ {[%emt 0:00:01]} Kf5 {[%emt 0:00:07]} 47. Qh7+ {[%emt 0:00:02] Weighted Error Value: White=0.21 (precise) /Black=0.20 (precise)} 1/2-1/2